[Event "*** Titled Tuesday Blitz"]
[Site "Chess.com"]
[Date "2020.05.19"]
[Round "2"]
[White "Azatic"]
[Black "Hippotaner"]
[Result "1-0"]
[WhiteElo "2603"]
[BlackElo "2314"]
[TimeControl "180+1"]
[EndTime "12:19:02 PDT"]
[Termination "Azatic won by resignation"]

1. e4 {[%clk 0:03:00.9]} 1... e5 {[%clk 0:02:56.2]} 2. Nf3 {[%clk 0:03:00.7]}
2... Nc6 {[%clk 0:02:54.7]} 3. Bb5 {[%clk 0:03:00.8]} 3... a6 {[%clk 0:02:54.1]}
4. Ba4 {[%clk 0:03:00.6]} 4... Nf6 {[%clk 0:02:53.7]} 5. O-O {[%clk 0:03:00.4]}
5... Be7 {[%clk 0:02:53.8]} 6. Re1 {[%clk 0:03:00.4]} 6... b5 {[%clk 0:02:54.3]}
7. Bb3 {[%clk 0:03:00.6]} 7... d6 {[%clk 0:02:55.1]} 8. c3 {[%clk 0:03:00.7]}
8... O-O {[%clk 0:02:55.1]} 9. d4 {[%clk 0:03:01]} 9... Bg4 {[%clk 0:02:54.7]}
10. Be3 {[%clk 0:03:01]} 10... exd4 {[%clk 0:02:55.2]} 11. cxd4 {[%clk
0:03:00.8]} 11... d5 {[%clk 0:02:55.8]} 12. e5 {[%clk 0:02:59.3]} 12... Ne4
{[%clk 0:02:56.3]} 13. Nc3 {[%clk 0:02:59.7]} 13... Nxc3 {[%clk 0:02:56.4]} 14.
bxc3 {[%clk 0:03:00.6]} 14... Na5 {[%clk 0:02:56.9]} 15. Bc2 {[%clk 0:03:00.4]}
15... Nc4 {[%clk 0:02:57.2]} 16. h3 {[%clk 0:02:48.7]} 16... Bh5 {[%clk
0:02:56.6]} 17. Bf4 {[%clk 0:02:38.5]} 17... a5 {[%clk 0:02:47.5]} 18. g4 {[%clk
0:02:29]} 18... Bg6 {[%clk 0:02:47.1]} 19. Nd2 {[%clk 0:02:24.1]} 19... c5
{[%clk 0:02:41.1]} 20. Nxc4 {[%clk 0:02:19.8]} 20... bxc4 {[%clk 0:02:33.7]} 21.
Bxg6 {[%clk 0:02:15.8]} 21... fxg6 {[%clk 0:02:08.7]} 22. Be3 {[%clk 0:02:14.7]}
22... Bg5 {[%clk 0:02:01]} 23. dxc5 {[%clk 0:02:06.3]} 23... Bxe3 {[%clk
0:02:00.9]} 24. Rxe3 {[%clk 0:02:07.2]} 24... Rc8 {[%clk 0:02:00.7]} 25. Qd4
{[%clk 0:02:02.7]} 25... Kh8 {[%clk 0:01:48.7]} 26. Rd1 {[%clk 0:01:58.2]} 26...
Qe7 {[%clk 0:01:48.8]} 27. Qxd5 {[%clk 0:00:47.2]} 27... Rxc5 {[%clk 0:01:47.3]}
28. Qd6 {[%clk 0:00:42.7]} 28... Rc7 {[%clk 0:01:09.6]} 29. Qxe7 {[%clk
0:00:41.4]} 29... Rxe7 {[%clk 0:01:08.6]} 30. e6 {[%clk 0:00:41.6]} 30... h5
{[%clk 0:01:05.4]} 31. Rd7 {[%clk 0:00:29.9]} 31... Rfe8 {[%clk 0:01:00.1]} 32.
Rxe7 {[%clk 0:00:29.4]} 32... Rxe7 {[%clk 0:01:00.2]} 33. f4 {[%clk 0:00:29.6]}
33... hxg4 {[%clk 0:00:57.8]} 34. hxg4 {[%clk 0:00:30.5]} 34... Kg8 {[%clk
0:00:54.1]} 35. f5 {[%clk 0:00:30.5]} 35... gxf5 {[%clk 0:00:53.9]} 36. gxf5
{[%clk 0:00:31.4]} 36... Kf8 {[%clk 0:00:54.3]} 37. Re4 {[%clk 0:00:30.9]} 37...
Rc7 {[%clk 0:00:45.2]} 38. Kf2 {[%clk 0:00:30.6]} 38... Ke7 {[%clk 0:00:45.6]}
39. Kf3 {[%clk 0:00:30.6]} 39... Kf6 {[%clk 0:00:45.9]} 40. Kg4 {[%clk
0:00:30.8]} 40... Ke7 {[%clk 0:00:33.3]} 41. Kg5 {[%clk 0:00:29.9]} 41... a4
{[%clk 0:00:25.7]} 42. Kg6 {[%clk 0:00:27.2]} 42... Rc5 {[%clk 0:00:21.4]} 43.
Rd4 {[%clk 0:00:26.2]} 43... Ke8 {[%clk 0:00:19.1]} 44. Rd7 {[%clk 0:00:20.3]}
44... Re5 {[%clk 0:00:19.2]} 45. Rxg7 {[%clk 0:00:19.8]} 45... Re3 {[%clk
0:00:19.5]} 46. Kf6 {[%clk 0:00:19.7]} 46... Kf8 {[%clk 0:00:13.9]} 47. Ra7
{[%clk 0:00:19.3]} 47... Kg8 {[%clk 0:00:12.2]} 48. e7 {[%clk 0:00:19.3]} 48...
Re1 {[%clk 0:00:08.8]} 49. Ra8+ {[%clk 0:00:18.6]} 49... Kh7 {[%clk 0:00:09.1]}
50. e8=Q {[%clk 0:00:18.4]} 1-0

[Event "*** Titled Tuesday Blitz"]
[Site "Chess.com"]
[Date "2020.05.19"]
[Round "2"]
[White "Jospem"]
[Black "Koksik_13"]
[Result "1/2-1/2"]
[WhiteElo "2821"]
[BlackElo "2537"]
[TimeControl "180+1"]
[EndTime "12:19:03 PDT"]
[Termination "Game drawn by repetition"]

1. c4 {[%clk 0:03:00.9]} 1... e6 {[%clk 0:02:59.9]} 2. Nf3 {[%clk 0:03:01.3]}
2... d5 {[%clk 0:03:00.3]} 3. g3 {[%clk 0:03:02.2]} 3... d4 {[%clk 0:02:57.6]}
4. Bg2 {[%clk 0:03:02.4]} 4... c5 {[%clk 0:02:58]} 5. O-O {[%clk 0:03:03.3]}
5... Nc6 {[%clk 0:02:58.2]} 6. e3 {[%clk 0:03:04.2]} 6... e5 {[%clk 0:02:57.8]}
7. exd4 {[%clk 0:03:05.1]} 7... exd4 {[%clk 0:02:58.7]} 8. d3 {[%clk 0:03:01.2]}
8... Nf6 {[%clk 0:02:58.6]} 9. Bg5 {[%clk 0:03:01.2]} 9... Be7 {[%clk
0:02:58.6]} 10. Bxf6 {[%clk 0:02:58.6]} 10... Bxf6 {[%clk 0:02:58.3]} 11. Nbd2
{[%clk 0:02:59.2]} 11... O-O {[%clk 0:02:57.2]} 12. a3 {[%clk 0:02:59.7]} 12...
Bf5 {[%clk 0:02:56.5]} 13. Ne1 {[%clk 0:02:50.3]} 13... Re8 {[%clk 0:02:52.7]}
14. Ne4 {[%clk 0:02:50.2]} 14... Bxe4 {[%clk 0:02:49.9]} 15. Bxe4 {[%clk
0:02:49.6]} 15... g6 {[%clk 0:02:48.3]} 16. Bg2 {[%clk 0:02:35.6]} 16... Qc7
{[%clk 0:02:46]} 17. Nc2 {[%clk 0:02:35.5]} 17... a5 {[%clk 0:02:44.9]} 18. a4
{[%clk 0:02:29.8]} 18... Re7 {[%clk 0:02:30.9]} 19. Na3 {[%clk 0:02:29]} 19...
Rae8 {[%clk 0:02:24.7]} 20. Qd2 {[%clk 0:02:29.1]} 20... Re2 {[%clk 0:02:18.5]}
21. Qd1 {[%clk 0:02:29.5]} 21... Nb4 {[%clk 0:02:13]} 22. Rb1 {[%clk 0:02:22.3]}
22... h5 {[%clk 0:02:11.3]} 23. Bf3 {[%clk 0:02:21.7]} 23... R2e7 {[%clk
0:02:05.4]} 24. Nb5 {[%clk 0:02:19.4]} 24... Qd7 {[%clk 0:01:54.8]} 25. Kg2
{[%clk 0:02:19.3]} 25... h4 {[%clk 0:01:53]} 26. Be4 {[%clk 0:02:15.6]} 26...
Kg7 {[%clk 0:01:49]} 27. Kh1 {[%clk 0:01:42.2]} 27... Rh8 {[%clk 0:01:40.9]} 28.
g4 {[%clk 0:01:41.1]} 28... Rhe8 {[%clk 0:01:14.6]} 29. Qf3 {[%clk 0:01:26.7]}
29... Bg5 {[%clk 0:01:03.8]} 30. Rg1 {[%clk 0:01:21.4]} 30... Re5 {[%clk
0:01:01.6]} 31. Rbf1 {[%clk 0:01:15.3]} 31... Qe7 {[%clk 0:00:49.4]} 32. Bd5
{[%clk 0:00:28.4]} 32... Qd7 {[%clk 0:00:41.9]} 33. Be4 {[%clk 0:00:28.1]} 33...
R5e6 {[%clk 0:00:41.8]} 34. h3 {[%clk 0:00:23.9]} 34... Rf6 {[%clk 0:00:41.5]}
35. Qg2 {[%clk 0:00:23.3]} 35... Rf4 {[%clk 0:00:35.7]} 36. Rd1 {[%clk
0:00:20.9]} 36... b6 {[%clk 0:00:32.2]} 37. Rge1 {[%clk 0:00:20.6]} 37... Kh6
{[%clk 0:00:28.3]} 38. Re2 {[%clk 0:00:20.8]} 38... Re5 {[%clk 0:00:23.1]} 39.
Rde1 {[%clk 0:00:20.8]} 39... Qe7 {[%clk 0:00:21.4]} 40. f3 {[%clk 0:00:19.7]}
40... f5 {[%clk 0:00:17.9]} 41. gxf5 {[%clk 0:00:18.9]} 41... gxf5 {[%clk
0:00:18.8]} 42. Ba8 {[%clk 0:00:10.2]} 42... Nxd3 {[%clk 0:00:17.9]} 43. Rxe5
{[%clk 0:00:10.8]} 43... Nxe5 {[%clk 0:00:17.8]} 44. Qe2 {[%clk 0:00:08.7]}
44... Bf6 {[%clk 0:00:12.4]} 45. Qd2 {[%clk 0:00:08.9]} 45... Bg5 {[%clk
0:00:10.1]} 46. Qe2 {[%clk 0:00:09.4]} 46... Bf6 {[%clk 0:00:03.9]} 47. Qd2
{[%clk 0:00:09.7]} 47... Bg5 {[%clk 0:00:02.7]} 48. Qe2 {[%clk 0:00:09.9]}
1/2-1/2

[Event "*** Titled Tuesday Blitz"]
[Site "Chess.com"]
[Date "2020.05.19"]
[Round "2"]
[White "Charlottemillard17"]
[Black "Fusikk"]
[Result "0-1"]
[WhiteElo "1418"]
[BlackElo "2579"]
[TimeControl "180+1"]
[EndTime "12:19:03 PDT"]
[Termination "Fusikk won on time"]

1. e4 {[%clk 0:03:00.9]} 1... c6 {[%clk 0:02:59.1]} 2. Nf3 {[%clk 0:02:59.8]}
2... d5 {[%clk 0:02:59.3]} 3. e5 {[%clk 0:02:59.4]} 3... c5 {[%clk 0:02:58.2]}
4. d4 {[%clk 0:02:54.5]} 4... cxd4 {[%clk 0:02:54.7]} 5. Nxd4 {[%clk 0:02:53]}
5... Nc6 {[%clk 0:02:52.9]} 6. Nb3 {[%clk 0:02:51.7]} 6... Bf5 {[%clk
0:02:50.1]} 7. f4 {[%clk 0:02:46.7]} 7... e6 {[%clk 0:02:48.8]} 8. Nc3 {[%clk
0:02:43.7]} 8... Bb4 {[%clk 0:02:41.2]} 9. Bd2 {[%clk 0:02:37]} 9... Bxc3 {[%clk
0:02:40.6]} 10. Bxc3 {[%clk 0:02:35.6]} 10... Nge7 {[%clk 0:02:41.5]} 11. Be2
{[%clk 0:02:11]} 11... O-O {[%clk 0:02:40.1]} 12. g4 {[%clk 0:02:08.1]} 12...
Be4 {[%clk 0:02:39.9]} 13. Bf3 {[%clk 0:02:07.8]} 13... Ng6 {[%clk 0:02:27.2]}
14. Bd2 {[%clk 0:01:43.1]} 14... Qh4+ {[%clk 0:02:25]} 15. Ke2 {[%clk
0:01:29.1]} 15... Bxf3+ {[%clk 0:02:06.2]} 16. Kxf3 {[%clk 0:01:28.6]} 16...
Qh3+ {[%clk 0:02:05.2]} 17. Kf2 {[%clk 0:01:25.9]} 17... Nh4 {[%clk 0:01:14.9]}
18. Rg1 {[%clk 0:00:52.2]} 18... Qxh2+ {[%clk 0:01:12.6]} 19. Kf1 {[%clk
0:00:50.4]} 19... f6 {[%clk 0:01:08.8]} 20. exf6 {[%clk 0:00:43.4]} 20... Rxf6
{[%clk 0:01:05.6]} 21. Qe1 {[%clk 0:00:42.5]} 21... Nf3 {[%clk 0:00:58.8]} 22.
Qf2 {[%clk 0:00:35]} 22... Qxg1+ {[%clk 0:00:54]} 23. Qxg1 {[%clk 0:00:33.7]}
23... Nxg1 {[%clk 0:00:54.9]} 24. Kxg1 {[%clk 0:00:33.2]} 24... h5 {[%clk
0:00:42.7]} 25. g5 {[%clk 0:00:32.7]} 25... Rf7 {[%clk 0:00:40.5]} 26. Nc5
{[%clk 0:00:32.4]} 26... Re8 {[%clk 0:00:39.1]} 27. Re1 {[%clk 0:00:31.9]} 27...
e5 {[%clk 0:00:39]} 28. fxe5 {[%clk 0:00:25.8]} 28... Rxe5 {[%clk 0:00:38.6]}
29. Rxe5 {[%clk 0:00:24.5]} 29... Nxe5 {[%clk 0:00:39.5]} 30. Bc3 {[%clk
0:00:21.9]} 30... d4 {[%clk 0:00:37.5]} 31. Bb4 {[%clk 0:00:17]} 31... b6 {[%clk
0:00:32.8]} 32. Ne6 {[%clk 0:00:15]} 32... a5 {[%clk 0:00:31.1]} 33. Bd6 {[%clk
0:00:13.6]} 33... Nc4 {[%clk 0:00:25.6]} 34. Bf4 {[%clk 0:00:09.5]} 34... Nxb2
{[%clk 0:00:20.7]} 35. Bd6 {[%clk 0:00:06.9]} 35... Nc4 {[%clk 0:00:19.2]} 36.
Bf4 {[%clk 0:00:06.6]} 36... b5 {[%clk 0:00:17.2]} 37. Bb8 {[%clk 0:00:05.6]}
37... b4 {[%clk 0:00:16.7]} 38. Bc7 {[%clk 0:00:05.2]} 38... a4 {[%clk
0:00:16.2]} 39. Bg3 {[%clk 0:00:02.9]} 39... Ne3 {[%clk 0:00:12.8]} 40. Nxd4
{[%clk 0:00:01]} 40... Rf1+ {[%clk 0:00:09.1]} 41. Kh2 {[%clk 0:00:01.4]} 41...
Ra1 {[%clk 0:00:09.2]} 0-1

[Event "*** Titled Tuesday Blitz"]
[Site "Chess.com"]
[Date "2020.05.19"]
[Round "2"]
[White "Lali-Rustavi"]
[Black "VaKukl"]
[Result "0-1"]
[WhiteElo "1872"]
[BlackElo "2356"]
[TimeControl "180+1"]
[EndTime "12:19:06 PDT"]
[Termination "VaKukl won by checkmate"]

1. c4 {[%clk 0:03:00.2]} 1... c5 {[%clk 0:02:59.4]} 2. Nc3 {[%clk 0:03:00.2]}
2... Nc6 {[%clk 0:02:45.3]} 3. g3 {[%clk 0:02:59.7]} 3... g6 {[%clk 0:02:45]} 4.
Bg2 {[%clk 0:02:59.5]} 4... Bg7 {[%clk 0:02:45.9]} 5. e3 {[%clk 0:02:59.5]} 5...
Nf6 {[%clk 0:02:44.5]} 6. Nge2 {[%clk 0:02:59.4]} 6... O-O {[%clk 0:02:44.6]} 7.
O-O {[%clk 0:02:58.8]} 7... b6 {[%clk 0:02:42.8]} 8. Rb1 {[%clk 0:02:55.5]} 8...
Bb7 {[%clk 0:02:41.9]} 9. d4 {[%clk 0:02:54.9]} 9... cxd4 {[%clk 0:02:41]} 10.
exd4 {[%clk 0:02:54.9]} 10... Na5 {[%clk 0:02:40.9]} 11. b3 {[%clk 0:02:49.6]}
11... Bxg2 {[%clk 0:02:40.1]} 12. Kxg2 {[%clk 0:02:49.3]} 12... d5 {[%clk
0:02:40.9]} 13. c5 {[%clk 0:02:42.6]} 13... Rc8 {[%clk 0:02:26.1]} 14. Be3
{[%clk 0:02:36]} 14... Ng4 {[%clk 0:02:24.8]} 15. b4 {[%clk 0:02:30.9]} 15...
Nc4 {[%clk 0:02:16.8]} 16. Qd3 {[%clk 0:02:29.4]} 16... Ngxe3+ {[%clk
0:02:05.1]} 17. fxe3 {[%clk 0:02:28.9]} 17... e5 {[%clk 0:02:05.8]} 18. a4
{[%clk 0:01:59.1]} 18... Re8 {[%clk 0:01:59.3]} 19. Nd1 {[%clk 0:01:55.6]} 19...
a5 {[%clk 0:01:53.3]} 20. bxa5 {[%clk 0:01:45.9]} 20... bxc5 {[%clk 0:01:52.4]}
21. Rb7 {[%clk 0:01:42.1]} 21... f5 {[%clk 0:01:41]} 22. a6 {[%clk 0:01:38.2]}
22... exd4 {[%clk 0:01:34.9]} 23. exd4 {[%clk 0:01:34.6]} 23... Ra8 {[%clk
0:01:14.8]} 24. a7 {[%clk 0:01:22.3]} 24... Re7 {[%clk 0:01:10.9]} 25. Rxe7
{[%clk 0:01:02]} 25... Qxe7 {[%clk 0:01:10.2]} 26. Nf4 {[%clk 0:00:58.8]} 26...
Qe4+ {[%clk 0:00:51.8]} 27. Qxe4 {[%clk 0:00:58]} 27... dxe4 {[%clk 0:00:51.8]}
28. dxc5 {[%clk 0:00:57.7]} 28... Rxa7 {[%clk 0:00:51.3]} 29. Ne6 {[%clk
0:00:43.5]} 29... Rxa4 {[%clk 0:00:50.9]} 30. c6 {[%clk 0:00:35.2]} 30... Nd6
{[%clk 0:00:45.8]} 31. Ne3 {[%clk 0:00:25.2]} 31... Kf7 {[%clk 0:00:34.8]} 32.
Nxg7 {[%clk 0:00:19.7]} 32... Kxg7 {[%clk 0:00:34.8]} 33. Rd1 {[%clk 0:00:19.6]}
33... Nb5 {[%clk 0:00:29.9]} 34. Rd7+ {[%clk 0:00:19.3]} 34... Kf6 {[%clk
0:00:28.6]} 35. c7 {[%clk 0:00:17.4]} 35... Nxc7 {[%clk 0:00:27.3]} 36. Rxc7
{[%clk 0:00:17.6]} 36... h5 {[%clk 0:00:27.6]} 37. Kh3 {[%clk 0:00:16]} 37...
Ra2 {[%clk 0:00:26.1]} 38. Nd5+ {[%clk 0:00:15.7]} 38... Kg5 {[%clk 0:00:25.3]}
39. Nf4 {[%clk 0:00:15.8]} 39... Ra6 {[%clk 0:00:18.9]} 40. Rg7 {[%clk
0:00:15.1]} 40... Kh6 {[%clk 0:00:17.4]} 41. Rf7 {[%clk 0:00:14.8]} 41... g5
{[%clk 0:00:14.1]} 42. Nd5 {[%clk 0:00:13.6]} 42... Ra2 {[%clk 0:00:13]} 43.
Rxf5 {[%clk 0:00:13]} 43... g4+ {[%clk 0:00:12.9]} 44. Kh4 {[%clk 0:00:09.6]}
44... Rxh2# {[%clk 0:00:13.8]} 0-1

[Event "*** Titled Tuesday Blitz"]
[Site "Chess.com"]
[Date "2020.05.19"]
[Round "2"]
[White "shav3184"]
[Black "Paladin61"]
[Result "0-1"]
[WhiteElo "2353"]
[BlackElo "2653"]
[TimeControl "180+1"]
[EndTime "12:19:07 PDT"]
[Termination "Paladin61 won by resignation"]

1. e4 {[%clk 0:03:00.9]} 1... c5 {[%clk 0:02:59.6]} 2. Nf3 {[%clk 0:03:01]} 2...
d6 {[%clk 0:02:59.9]} 3. d4 {[%clk 0:03:01.9]} 3... cxd4 {[%clk 0:03:00.8]} 4.
Nxd4 {[%clk 0:03:02.8]} 4... Nf6 {[%clk 0:03:01.3]} 5. f3 {[%clk 0:03:03.4]}
5... Nc6 {[%clk 0:03:00.3]} 6. c4 {[%clk 0:03:00.1]} 6... Qb6 {[%clk 0:03:00.5]}
7. Nc2 {[%clk 0:02:54]} 7... e6 {[%clk 0:02:59.6]} 8. Nc3 {[%clk 0:02:53.3]}
8... Be7 {[%clk 0:02:59.5]} 9. Rb1 {[%clk 0:02:53.3]} 9... O-O {[%clk
0:02:57.8]} 10. Be3 {[%clk 0:02:53.2]} 10... Qc7 {[%clk 0:02:58]} 11. Be2 {[%clk
0:02:53.3]} 11... Rd8 {[%clk 0:02:57.8]} 12. O-O {[%clk 0:02:53.2]} 12... d5
{[%clk 0:02:57.8]} 13. cxd5 {[%clk 0:02:47.2]} 13... exd5 {[%clk 0:02:57.8]} 14.
exd5 {[%clk 0:02:08]} 14... Be6 {[%clk 0:02:55.9]} 15. Qe1 {[%clk 0:01:31.6]}
15... Nxd5 {[%clk 0:02:52.9]} 16. Nxd5 {[%clk 0:01:30.8]} 16... Bxd5 {[%clk
0:02:52]} 17. Qf2 {[%clk 0:01:30.5]} 17... Bxa2 {[%clk 0:02:35.1]} 18. Rbc1
{[%clk 0:01:30.2]} 18... Qe5 {[%clk 0:02:31.2]} 19. b4 {[%clk 0:01:12.6]} 19...
a6 {[%clk 0:02:21.7]} 20. f4 {[%clk 0:01:04.7]} 20... Qb2 {[%clk 0:02:15.9]} 21.
Bc5 {[%clk 0:00:58.6]} 21... Bxc5 {[%clk 0:01:37.8]} 22. Qxc5 {[%clk 0:00:58.3]}
22... Rac8 {[%clk 0:01:37.2]} 23. Bg4 {[%clk 0:00:56.9]} 23... Rc7 {[%clk
0:01:27.7]} 24. Rcd1 {[%clk 0:00:41.1]} 24... Rxd1 {[%clk 0:00:59.8]} 25. Rxd1
{[%clk 0:00:42]} 25... g6 {[%clk 0:00:59]} 26. Rd8+ {[%clk 0:00:18.6]} 26...
Nxd8 {[%clk 0:00:47.7]} 27. Qxc7 {[%clk 0:00:19.5]} 27... Qc1+ {[%clk
0:00:39.8]} 28. Kf2 {[%clk 0:00:18.6]} 28... Qd2+ {[%clk 0:00:32]} 29. Kg3
{[%clk 0:00:17.6]} 29... Nc6 {[%clk 0:00:25.6]} 30. Qc8+ {[%clk 0:00:15.5]}
30... Kg7 {[%clk 0:00:25.3]} 31. Na3 {[%clk 0:00:14]} 31... Qc3+ {[%clk
0:00:22.5]} 32. Kh4 {[%clk 0:00:13.4]} 32... Qxa3 {[%clk 0:00:19.7]} 33. Qxb7
{[%clk 0:00:13.5]} 33... Nd4 {[%clk 0:00:14.1]} 34. Qe7 {[%clk 0:00:10.8]} 34...
Ne6 {[%clk 0:00:12.4]} 35. Bxe6 {[%clk 0:00:09.9]} 35... Bxe6 {[%clk 0:00:12]}
36. Kg5 {[%clk 0:00:10]} 36... h6+ {[%clk 0:00:10.5]} 37. Kh4 {[%clk 0:00:10]}
37... Qc3 {[%clk 0:00:10]} 38. g4 {[%clk 0:00:08.4]} 38... Qf6+ {[%clk
0:00:09.4]} 39. Qxf6+ {[%clk 0:00:08]} 39... Kxf6 {[%clk 0:00:09.7]} 40. g5+
{[%clk 0:00:08.9]} 40... hxg5+ {[%clk 0:00:09.9]} 41. fxg5+ {[%clk 0:00:09.8]}
41... Kf5 {[%clk 0:00:10.2]} 0-1

[Event "*** Titled Tuesday Blitz"]
[Site "Chess.com"]
[Date "2020.05.19"]
[Round "2"]
[White "Tacticusbd"]
[Black "Roza_Idrisova"]
[Result "1-0"]
[WhiteElo "2405"]
[BlackElo "2127"]
[TimeControl "180+1"]
[EndTime "12:19:07 PDT"]
[Termination "Tacticusbd won on time"]

1. e4 {[%clk 0:03:00.9]} 1... c6 {[%clk 0:02:59.6]} 2. d4 {[%clk 0:02:59.7]}
2... d5 {[%clk 0:02:59.4]} 3. e5 {[%clk 0:02:59.9]} 3... c5 {[%clk 0:02:59.3]}
4. dxc5 {[%clk 0:02:59]} 4... e6 {[%clk 0:02:58.9]} 5. Bd3 {[%clk 0:02:56.8]}
5... Bxc5 {[%clk 0:02:58.4]} 6. a3 {[%clk 0:02:55.1]} 6... Nc6 {[%clk
0:02:56.9]} 7. Nf3 {[%clk 0:02:54.1]} 7... Nge7 {[%clk 0:02:56.2]} 8. O-O {[%clk
0:02:50.1]} 8... Ng6 {[%clk 0:02:55.7]} 9. Re1 {[%clk 0:02:47.3]} 9... O-O
{[%clk 0:02:53.9]} 10. Nbd2 {[%clk 0:02:43.9]} 10... a5 {[%clk 0:02:47]} 11. Nb3
{[%clk 0:02:26.2]} 11... Bb6 {[%clk 0:02:44.4]} 12. c3 {[%clk 0:01:59.8]} 12...
a4 {[%clk 0:02:43.7]} 13. Nbd4 {[%clk 0:01:58.3]} 13... Bc7 {[%clk 0:02:37.9]}
14. Nb5 {[%clk 0:01:42.9]} 14... Ncxe5 {[%clk 0:02:23.9]} 15. Nxe5 {[%clk
0:01:39.8]} 15... Bxe5 {[%clk 0:02:22.6]} 16. Bxg6 {[%clk 0:01:36.3]} 16...
Bxh2+ {[%clk 0:02:02.5]} 17. Kxh2 {[%clk 0:01:34.6]} 17... hxg6 {[%clk
0:02:02.6]} 18. Kg1 {[%clk 0:01:25]} 18... Bd7 {[%clk 0:02:01.7]} 19. Nd4 {[%clk
0:01:23.5]} 19... Qc7 {[%clk 0:01:55.4]} 20. Qd3 {[%clk 0:01:11]} 20... Rfe8
{[%clk 0:01:48.4]} 21. Nf3 {[%clk 0:00:59.4]} 21... Qb6 {[%clk 0:01:36.7]} 22.
Bf4 {[%clk 0:00:51.4]} 22... Bb5 {[%clk 0:01:33.7]} 23. Qd2 {[%clk 0:00:48.2]}
23... f6 {[%clk 0:01:29.5]} 24. Bg3 {[%clk 0:00:45]} 24... Rad8 {[%clk
0:01:26.8]} 25. Qc2 {[%clk 0:00:43.6]} 25... Kf7 {[%clk 0:01:16.3]} 26. Nh4
{[%clk 0:00:39.7]} 26... f5 {[%clk 0:01:13.6]} 27. Be5 {[%clk 0:00:37.5]} 27...
Rh8 {[%clk 0:01:08.9]} 28. Nf3 {[%clk 0:00:32]} 28... Rh5 {[%clk 0:01:06.2]} 29.
Bd4 {[%clk 0:00:20.1]} 29... Qc7 {[%clk 0:00:59.6]} 30. Ne5+ {[%clk 0:00:19]}
30... Kg8 {[%clk 0:00:55]} 31. f3 {[%clk 0:00:18.1]} 31... Be8 {[%clk
0:00:49.3]} 32. Qf2 {[%clk 0:00:16.7]} 32... Qe7 {[%clk 0:00:45.8]} 33. Qg3
{[%clk 0:00:16.1]} 33... g5 {[%clk 0:00:39.3]} 34. f4 {[%clk 0:00:12.7]} 34...
g4 {[%clk 0:00:32.5]} 35. Kf2 {[%clk 0:00:11.7]} 35... Qd6 {[%clk 0:00:20.2]}
36. Rh1 {[%clk 0:00:08]} 36... g6 {[%clk 0:00:16.6]} 37. Rh4 {[%clk 0:00:06.4]}
37... Qc7 {[%clk 0:00:13.4]} 38. Rxh5 {[%clk 0:00:06.4]} 38... gxh5 {[%clk
0:00:12.7]} 39. Qh4 {[%clk 0:00:07.3]} 39... Rb8 {[%clk 0:00:10]} 40. Nd3 {[%clk
0:00:06.5]} 40... Qf7 {[%clk 0:00:08.7]} 41. Qg5+ {[%clk 0:00:05.4]} 41... Qg6
{[%clk 0:00:08.3]} 42. Rb1 {[%clk 0:00:05]} 42... b5 {[%clk 0:00:07.6]} 43. Qe7
{[%clk 0:00:03.9]} 43... Qf7 {[%clk 0:00:06.6]} 44. Qd6 {[%clk 0:00:04]} 44...
Rb7 {[%clk 0:00:06.2]} 45. Qe5 {[%clk 0:00:04.2]} 1-0

[Event "*** Titled Tuesday Blitz"]
[Site "Chess.com"]
[Date "2020.05.19"]
[Round "2"]
[White "Mugzyyy"]
[Black "dretch"]
[Result "0-1"]
[WhiteElo "2477"]
[BlackElo "2713"]
[TimeControl "180+1"]
[EndTime "12:19:10 PDT"]
[Termination "dretch won by checkmate"]

1. d4 {[%clk 0:03:00.9]} 1... d5 {[%clk 0:02:50.8]} 2. c4 {[%clk 0:03:00.6]}
2... c6 {[%clk 0:02:50]} 3. Nf3 {[%clk 0:03:00.7]} 3... Nf6 {[%clk 0:02:49.7]}
4. Nc3 {[%clk 0:03:01.1]} 4... dxc4 {[%clk 0:02:47.6]} 5. a4 {[%clk 0:03:01.1]}
5... Bf5 {[%clk 0:02:41.2]} 6. Ne5 {[%clk 0:03:01.1]} 6... Nbd7 {[%clk 0:02:41]}
7. Nxc4 {[%clk 0:03:01.3]} 7... Nb6 {[%clk 0:02:41.2]} 8. e3 {[%clk 0:02:46.8]}
8... e6 {[%clk 0:02:40.5]} 9. a5 {[%clk 0:02:46]} 9... Nxc4 {[%clk 0:02:39.8]}
10. Bxc4 {[%clk 0:02:46.9]} 10... Bd6 {[%clk 0:02:39.7]} 11. f3 {[%clk
0:02:45.6]} 11... Nd7 {[%clk 0:02:33.4]} 12. O-O {[%clk 0:02:24.3]} 12... O-O
{[%clk 0:02:29.1]} 13. e4 {[%clk 0:02:22]} 13... Bg6 {[%clk 0:02:29]} 14. f4
{[%clk 0:02:17.2]} 14... h6 {[%clk 0:02:09.2]} 15. Qg4 {[%clk 0:02:09.1]} 15...
Nf6 {[%clk 0:02:04.4]} 16. Qf3 {[%clk 0:02:08.4]} 16... Bb4 {[%clk 0:02:02]} 17.
Be3 {[%clk 0:02:07.2]} 17... Bxc3 {[%clk 0:02:00.8]} 18. bxc3 {[%clk 0:02:05.4]}
18... Bxe4 {[%clk 0:01:56.7]} 19. Qg3 {[%clk 0:02:05.6]} 19... Kh7 {[%clk
0:01:49.9]} 20. Bf2 {[%clk 0:02:00.6]} 20... Bg6 {[%clk 0:01:48.2]} 21. Qh3
{[%clk 0:01:57.5]} 21... Ne4 {[%clk 0:01:32]} 22. Bh4 {[%clk 0:01:54.6]} 22...
Qd7 {[%clk 0:01:24.1]} 23. Bd3 {[%clk 0:01:48]} 23... Qd5 {[%clk 0:01:13.5]} 24.
Kh1 {[%clk 0:01:22.8]} 24... Kh8 {[%clk 0:00:56.2]} 25. Qe3 {[%clk 0:01:18.3]}
25... Nd6 {[%clk 0:00:38.1]} 26. Bxg6 {[%clk 0:01:17.8]} 26... fxg6 {[%clk
0:00:39]} 27. Qd3 {[%clk 0:01:15.9]} 27... Qf5 {[%clk 0:00:33.6]} 28. Qe2 {[%clk
0:01:14.8]} 28... Rae8 {[%clk 0:00:28.8]} 29. c4 {[%clk 0:01:10.5]} 29... Qh5
{[%clk 0:00:25.6]} 30. Qxh5 {[%clk 0:00:50.4]} 30... gxh5 {[%clk 0:00:26.5]} 31.
a6 {[%clk 0:00:50.9]} 31... b6 {[%clk 0:00:23.7]} 32. c5 {[%clk 0:00:51]} 32...
bxc5 {[%clk 0:00:19.4]} 33. dxc5 {[%clk 0:00:51.9]} 33... Nf5 {[%clk 0:00:19]}
34. Be1 {[%clk 0:00:51.1]} 34... Ne3 {[%clk 0:00:15.8]} 35. Rf3 {[%clk
0:00:49.9]} 35... Nd5 {[%clk 0:00:16]} 36. Bc3 {[%clk 0:00:48.2]} 36... Rxf4
{[%clk 0:00:14]} 37. Rxf4 {[%clk 0:00:48]} 37... Nxf4 {[%clk 0:00:14.9]} 38. Rb1
{[%clk 0:00:48.6]} 38... Nd5 {[%clk 0:00:14.7]} 39. Be5 {[%clk 0:00:48.6]} 39...
Kg8 {[%clk 0:00:14.1]} 40. Rb7 {[%clk 0:00:48.4]} 40... Re7 {[%clk 0:00:14.5]}
41. Bd6 {[%clk 0:00:47.2]} 41... Rf7 {[%clk 0:00:14]} 42. g3 {[%clk 0:00:46.9]}
42... Rf1+ {[%clk 0:00:08.9]} 43. Kg2 {[%clk 0:00:46.7]} 43... Ne3+ {[%clk
0:00:09.8]} 44. Kh3 {[%clk 0:00:47]} 44... g5 {[%clk 0:00:10.2]} 45. Rb8+ {[%clk
0:00:26.4]} 45... Kh7 {[%clk 0:00:09]} 46. Rb3 {[%clk 0:00:27.3]} 46... Rf3
{[%clk 0:00:08.3]} 47. Rb8 {[%clk 0:00:13.4]} 47... g4+ {[%clk 0:00:06]} 48. Kh4
{[%clk 0:00:13.6]} 48... Rf5 {[%clk 0:00:05.3]} 49. Rb2 {[%clk 0:00:11.9]} 49...
Rd5 {[%clk 0:00:04.2]} 50. h3 {[%clk 0:00:12.1]} 50... Nf5+ {[%clk 0:00:04.1]}
51. Kxh5 {[%clk 0:00:11.4]} 51... Nxd6+ {[%clk 0:00:05]} 52. Kxg4 {[%clk
0:00:11.9]} 52... Nb5 {[%clk 0:00:05.7]} 53. Rf2 {[%clk 0:00:11.3]} 53... Rg5+
{[%clk 0:00:05.5]} 54. Kh4 {[%clk 0:00:11.1]} 54... Nd4 {[%clk 0:00:05.7]} 55.
Rf7+ {[%clk 0:00:11.3]} 55... Kg6 {[%clk 0:00:05.7]} 56. Rxa7 {[%clk 0:00:09.4]}
56... Nf5# {[%clk 0:00:06.2]} 0-1